Workbook

Sheet 1 апреля (hidden)
B2: Согласно контракту
B3: №2024.617
B4: от 23.12.2023 г.
C6: 10 день
B9: Д/сад | C9: МБДОУ "ЦРР-д/с № 22"Алсу" | D9: День | E9: 2024-03-01
B11: 10 | C11: Блюдо | D11: С 3 лет | E11: до 7 лет
D12: грамм | E12: ккал
B13: Завтрак/иртәнге аш | C13: Каша геркулесовая молочная с маслом сливочным | D13: 180/5 | E13: 251.91
C14: Кофейный напиток с молоком | D14: 180/6 | E14: 42.67
C15: Бутерброд с маслом сливочным | D15: 30/5 | E15: 111.60
B16: 09.00 | C16: апельсин | D16: 100 | E16: 47.0
B17: Обед/төшке аш | C17: Салат из свеклы с сыром | D17: 60 | E17: 78.42
C18: Рассольник ленинградский с куриными фрикадельками, со сметаной | D18: 180/11/7 | E18: 117.51
C19: Котлеты рыбные с маслом сливочным | D19: 70/3 | E19: 144.36
C20: Макаронные изделия отварные с овощами | D20: 130 | E20: 163.28
C21: Кисель | D21: 180 | E21: 75.24
C22: хлеб пшеничный | D22: 25 | E22: 58.75
C23: Хлеб ржаной | D23: 45 | E23: 89.10
B24: Полдник/төштән соңгы аш | C24: Молоко кипяченое | D24: 180 | E24: 96.30
C25: Кондитерские изделия (печенье) | D25: 20 | E25: 90.20
B26: Ужин/кичке аш | C26: Капуста тушеная с мясом | D26: 180 | E26: 250.30
C27: Напиток из шиповника | D27: 180/6 | E27: 79.38
C28: Хлеб пшеничный | D28: 30 | E28: 70.50
D29: 152,36 руб | E29: =E28+E27+E26+E25+E24+E23+E22+E21+E20+E19+E18+E17+E16+E15+E14+E13 -> 1766.52

Sheet Лист1 (hidden)

Sheet Лист2 (hidden)

Sheet 1 апр. (hidden)

Sheet Лист3 (hidden)

Sheet Лист4 (hidden)

Sheet Лист5 (hidden)

Sheet Лист6 (hidden)

Sheet Лист7 (hidden)

Sheet Лист8 (hidden)

Sheet Лист9 (hidden)

Sheet Лист10 (hidden)

Sheet Лист11 (hidden)

Sheet Лист12 (hidden)

Sheet Лист13 (hidden)

Sheet Лист14 (hidden)

Sheet Лист15 (hidden)

Sheet Лист16 (hidden)

Sheet Лист17 (hidden)

Sheet Лист18 (hidden)

Sheet Лист19 (hidden)

Sheet Лист20 (hidden)

Sheet Лист21 (hidden)

Sheet Лист22 (hidden)

Sheet Лист23 (hidden)

Sheet 2 апр. (hidden)
B2: Согласно контракту
B3: №2024.617
B4: от 23.12.2023 г.
C6: 2 день
B9: Д/сад | C9: МБДОУ "ЦРР-д/с № 22"Алсу" | D9: День | E9: 2024-04-02
B11: 10 | C11: Блюдо | D11: С 3 лет | E11: до 7 лет
D12: грамм | E12: ккал
B13: Завтрак/иртәнге аш | C13: Каша полбяная молочная с маслом сливочным | D13: 180/3 | E13: 202.64
C14: какао с молоком | D14: 180 | E14: 58.83
C15: Бутерброд с сыром, маслом сливочным | D15: 30/5/5 | E15: 128.77
B16: 09.00 | C16: Сок | D16: 180 | E16: 94.4
B17: Обед/төшке аш | C17: Салат из картофеля с солеными огурцами | D17: 60 | E17: 66.84
C18: Борщ со свежей капустой, картофелем на курином б-не, с куриными фрикадельками, со сметаной | D18: 180/10/7 | E18: 106.63
C19: Фрикадельки куриные в молочном соусе | D19: 50/25 | E19: 136.30
C20: Макароны отварны с маслом сливочным | D20: 130/3 | E20: 155.22
C21: Компот из свежих яблок | D21: 180 | E21: 55.26
C22: Хлеб пшеничный | D22: 25 | E22: 58.75
C23: Хлеб ржаной | D23: 45 | E23: 89.10
B24: Полдник/төштән соңгы аш | C24: Ряженка | D24: 180 | E24: 91.80
C25: Булочка дорожная | D25: 50 | E25: 165.50
B26: Ужин/кичке аш | C26: Запеканка творожная с повидлом | D26: 120/30 | E26: 418.50
C27: Чай с сахаром и лимоном | D27: 180/6/7 | E27: 26.48
D28: 152,36 руб | E28: =E27+E26+E25+E24+E23+E22+E21+E20+E18+E19+E17+E16+E15+E14 -> 1652.38

Sheet 3 апр. (hidden)
B2: Согласно контракту
B3: №2024.617
B4: от 23.12.2023 г.
C6: 3 день
B9: Д/сад | C9: МБДОУ "ЦРР-д/с № 22"Алсу" | D9: День | E9: 2024-04-03
B11: 10 | C11: Блюдо | D11: С 3 лет | E11: до 7 лет
D12: грамм | E12: ккал
B13: Завтрак/иртәнге аш | C13: Каша кукурузная молочная с маслом сливочным | D13: 180/5 | E13: 274.16
C14: Чай с сахаром и молоком | D14: 180/6 | E14: 72.7
C15: Бутерброд с маслом сливочным | D15: 30/5 | E15: 111.60
B16: 09.00 | C16: Яблоко | D16: 100 | E16: 47.0
B17: Обед/төшке аш | C17: Салат из припущенной моркови с яблоками60 | D17: 60 | E17: 24.24
C18: Суп картофельный гороховый на мясном б-не с мясом | D18: 180/10 | E18: 121.57
C19: плов из отварной говядины | D19: 200 | E19: 396.00
C20: Компот из урюка | D20: 180 | E20: 68.20
C21: Хлеб пшеничный | D21: 25 | E21: 58.75
C22: Хлеб ржаной | D22: 45 | E22: 89.10
B23: Полдник/төштән соңгы аш | C23: Молоко кипяченое | D23: 180 | E23: 75.24
C24: Печенье | D24: 20 | E24: 89.10
B25: Ужин/кичке аш | C25: Фрикадельки рыбный отварные | D25: 80 | E25: 88.00
C26: Картофель тушеный с овощами в соусе | D26: 140 | E26: 201.60
C27: Напиток из шиповника | D27: 180/6 | E27: 79.38
C28: Хлеб пшеничный | D28: 30 | E28: 70.50
D29: 152,36 руб | E29: =E28+E27+E26+E25+E24+E23+E22+E21+E20+E19+E18+E17+E16+E15+E14+E13 -> 1867.14

Sheet 2 мая (hidden)
B2: Согласно контракту
B3: №2024.617
B4: от 23.12.2023 г.
C7: 4 день
B9: Д/сад | C9: МБДОУ "ЦРР-д/с № 22"Алсу" | D9: День | E9: 2024-05-02
B11: 10 | C11: Блюдо | D11: С 3 лет | E11: до 7 лет
D12: грамм | E12: ккал
B13: Завтрак/иртәнге аш | C13: Каша ячневая молочная с маслом сливочным | D13: 180/3 | E13: 223.41
C14: Кофейный напиток с молоком | D14: 180/6 | E14: 42.67
C15: Бутерброд с маслом сливочным, повидлом | D15: 30/5/10 | E15: 119.80
B16: 09.00 | C16: Сок | D16: 180 | E16: 94.4
B17: Обед/төшке аш | C17: Салат из зеленого горошка к/с | D17: 50 | E17: 41.80
C18: Суп картофельный с пшенной крупой на курином б-не, с мясом птицы | D18: 180/10 | E18: 76.57
C19: птица, тушенная с соусе с овощами | D19: 200 | E19: 264.00
C20: Компот из изюма и яблок | D20: 180 | E20: 108.00
C21: Хлеб пшеничный | D21: 225 | E21: 58.75
C22: Хлеб ржаной | D22: 45 | E22: 89.10
B23: Полдник/төштән соңгы аш | C23: Кефир | D23: 180 | E23: 90.00
C24: Кондитерские изделия (печенье) | D24: 20 | E24: 90.20
B25: Ужин/кичке аш | C25: Омлет натуральный с сыром | D25: 150 | E25: 347.50
C26: Чай с сахаром | D26: 180/6 | E26: 24.10
C27: Хлеб пшеничный | D27: 30 | E27: 70.50
D28: 152,36 руб | E28: =E27+E26+E25+E24+E23+E22+E21+E20+E19+E18+E17+E16+E15+E14+E13 -> 1740.80

Sheet 1 июля (hidden)
B2: Согласно контракту
B3: №2024.617
B4: от 23.12.2023 г.
C7: 6 день
B9: Д/сад | C9: МБДОУ "ЦРР-д/с № 22"Алсу"
B11: 10 | C11: Блюдо | D11: С 3 лет | E11: до 7 лет
D12: грамм | E12: ккал
B13: Завтрак/иртәнге аш | C13: Каша пшенная молочная с маслом сливочным | D13: 180/3 | E13: 208.76
C14: Чай с молоком и сахаром | D14: 180/6 | E14: 75.76
C15: Бутерброд с маслом сливочным | D15: 30/5 | E15: 111.60
B16: 09.00 | C16: Сок | D16: 180 | E16: 94.4
B17: Обед/төшке аш | C17: Салат картофельный с морковуью и кукурузой к/с | D17: 60 | E17: 24.24
C18: Суп из овощей на курином б-не, с мясными фрикадельками, со сметаной | D18: 180/11/7 | E18: 101.49
C19: Ежики куриные в сметанно-томатномном соусе | D19: 50/25 | E19: 123.03
C20: вермишель отварной | D20: 130 | E20: 135.46
C21: Напиток из сухофруктов | D21: 180 | E21: 87.50
C22: Хлеб пшеничный | D22: 25 | E22: 58.75
C23: Хлеб ржаной | D23: 45 | E23: 89.10
B24: Полдник/төштән соңгы аш | C24: Катык | D24: 180 | E24: 91.86
C25: Булочка с сахаром | D25: 50 | E25: 170.67
B26: Ужин/кичке аш | C26: Запеканка творожная с повидлом | D26: 120/30 | E26: 418.50
C27: Напиок из шиповника | D27: 180/5 | E27: 24.10
D28: 152,36 руб | E28: =E27+E26+E25+E24+E23+E22+E20+E19+E18+E17+E16+E15+E14+E13 -> 1727.72

Sheet 6 мая (hidden)
B2: Согласно контракту
B3: №2024.617
B4: от 23.12.2023 г.
C7: 6 день
B9: Д/сад | C9: МБДОУ "ЦРР-д/с № 22"Алсу" | D9: День | E9: 2024-05-06
B11: 10 | C11: Блюдо | D11: С 3 лет | E11: до 7 лет
D12: грамм | E12: ккал
B13: Завтрак/иртәнге аш | C13: Каша пшенная молочная с маслом сливочным | D13: 180/3 | E13: 208.76
C14: Чай с молоком и сахаром | D14: 180/6 | E14: 75.76
C15: Бутерброд с маслом сливочным | D15: 30/5 | E15: 111.60
B16: 09.00 | C16: Сок | D16: 180 | E16: 94.4
B17: Обед/төшке аш | C17: Салат картофельный с морковуью и кукурузой к/с | D17: 60 | E17: 24.24
C18: Суп из овощей на курином б-не, с мясными фрикадельками, со сметаной | D18: 180/11/7 | E18: 101.49
C19: Ежики куриные в сметанно-томатномном соусе | D19: 50/25 | E19: 123.03
C20: вермишель отварной | D20: 130 | E20: 135.46
C21: Напиток из сухофруктов | D21: 180 | E21: 87.50
C22: Хлеб пшеничный | D22: 25 | E22: 58.75
C23: Хлеб ржаной | D23: 45 | E23: 89.10
B24: Полдник/төштән соңгы аш | C24: Катык | D24: 180 | E24: 91.86
C25: Булочка с сахаром | D25: 50 | E25: 170.67
B26: Ужин/кичке аш | C26: Запеканка творожная с повидлом | D26: 120/30 | E26: 418.50
C27: Напиок из шиповника | D27: 180/5 | E27: 24.10
D28: 152,36 руб | E28: =E27+E26+E25+E24+E23+E22+E20+E19+E18+E17+E16+E15+E14+E13 -> 1727.72

Sheet 2 июля (hidden)
B2: Согласно контракту
B3: №2024.617
B4: от 23.12.2023 г.
C6: 7 день
B9: Д/сад | C9: МБДОУ "ЦРР-д/с № 22"Алсу"
B11: 10 | C11: Блюдо | D11: С 3 лет | E11: до 7 лет
D12: грамм | E12: ккал
B13: Завтрак/иртәнге аш | C13: Каша кукурузная молочная с маслом сливочным | D13: 180/5 | E13: 274.16
C14: Кофейный напиток с молоком | D14: 180 | E14: 42.67
C15: Бутерброд с маслом сливочным | D15: 30/5 | E15: 111.60
C16: Сыр порционно | D16: 10 | E16: 34.33
B17: 09.00 | C17: Сок | D17: 180 | E17: 94.4
B18: Обед/төшке аш | C18: Салат из белокачанной капусты | D18: 60 | E18: 53.88
C19: Суп картофельный с клецками на мясном б-не с мясом | D19: 180/10 | E19: 121.66
C20: Гуляш из отварной говядины | D20: 40/40 | E20: 131.20
C21: Пюре картофельное | D21: 140 | E21: 128.10
C22: Компот из свежих фруктов | D22: 180 | E22: 55.26
C23: Хлеб пшеничный | D23: 25 | E23: 58.75
C24: Хлеб ржаной | D24: 45 | E24: 89.10
B25: Полдник/төштән соңгы аш | C25: Кефир | D25: 180 | E25: 90.00
C26: мармелад | D26: 10 | E26: 83.00
B27: Ужин/кичке аш | C27: Биточки-рубленные из рыбы | D27: 70 | E27: 124.60
C28: Каша гречневая рассыпчатая с овощами с маслом сливочным | D28: 130/3 | E28: 181.83
C29: Чай с сахаром и лимоном | D29: 180/6/7 | E29: 26.48
C30: Хлеб пшеничный | D30: 30 | E30: 70.50
D31: 152,36 руб | E31: =E29+E27+E26+E25+E24+E23+E21+E20+E19+E18+E17+E15+E14+E13 -> 1429.60

Sheet Лист24 (hidden)

Sheet 3 июля (hidden)
B2: Согласно контракту
B3: №2024.617
B4: от 23.12.2023 г.
C7: 8 день
B9: Д/сад | C9: МБДОУ "ЦРР-д/с № 22"Алсу"
B11: 10 | C11: Блюдо | D11: С 3 лет | E11: до 7 лет
D12: грамм | E12: ккал
B13: Завтрак/иртәнге аш | C13: Каша манная молочная с маслом сливочным | D13: 180/5 | E13: 199.50
C14: Какао с молоком | D14: 180/6 | E14: 58.83
C15: Бутерброд с маслом сливочным | D15: 30/5 | E15: 111.60
B16: 09.00 | C16: Сок | D16: 180 | E16: 96.0
B17: Обед/төшке аш | C17: Салат из моркови | D17: 60 | E17: 62.34
C18: Щи со свежей капустой с картофелем на курином б-не, с куриными фрикадельками и со сметаной | D18: 180/11/7 | E18: 104.59
C19: Биточки домашние | D19: 70 | E19: 225.40
C20: Рис отварной рассыпчатый с маслом сливочным | D20: 130/20 | E20: 192.01
C21: Компот из изюма | D21: 180 | E21: 62.10
C22: Хлеб пшеничный | D22: 25 | E22: 58.75
C23: Хлеб ржаной | D23: 45 | E23: 89.10
B24: Полдник/төштән соңгы аш | C24: Молоко кипяченое | D24: 180 | E24: 96.30
C25: Кондитерские изделия (печенье) | D25: 20 | E25: 90.20
B26: Ужин/кичке аш | C26: Омлет натуральный | D26: 150 | E26: 335.23
C27: Чай с сахаром | D27: 180/6 | E27: 24.10
C28: Хлеб пшеничный | D28: 30 | E28: 70.50
D29: 152,36 руб | E29: =E27+E26+E25+E24+E23+E22+E20+E19+E18+E17+E16+E15+E14+E13 -> 1743.95

Sheet 11 апр. (hidden)
B2: Согласно контракту
B3: №2024.617
B4: от 23.12.2023 г.
C6: 10 день
B9: Д/сад | C9: МБДОУ "ЦРР-д/с № 22"Алсу" | D9: День | E9: 2024-04-11
B11: 10 | C11: Блюдо | D11: С 3 лет | E11: до 7 лет
D12: грамм | E12: ккал
B13: Завтрак/иртәнге аш | C13: Каша геркулесовая молочная с маслом сливочным | D13: 180/5 | E13: 251.91
C14: Кофейный напиток с молоком | D14: 180/6 | E14: 42.67
C15: Бутерброд с маслом сливочным | D15: 30/5 | E15: 111.60
B16: 09.00 | C16: апельсин | D16: 100 | E16: 47.0
B17: Обед/төшке аш | C17: Салат из свеклы с сыром | D17: 60 | E17: 78.42
C18: Рассольник ленинградский с куриными фрикадельками, со сметаной | D18: 180/11/7 | E18: 117.51
C19: Котлеты рыбные с маслом сливочным | D19: 70/3 | E19: 144.36
C20: Макаронные изделия отварные с овощами | D20: 130 | E20: 163.28
C21: Кисель | D21: 180 | E21: 75.24
C22: хлеб пшеничный | D22: 25 | E22: 58.75
C23: Хлеб ржаной | D23: 45 | E23: 89.10
B24: Полдник/төштән соңгы аш | C24: Молоко кипяченое | D24: 180 | E24: 96.30
C25: Кондитерские изделия (печенье) | D25: 20 | E25: 90.20
B26: Ужин/кичке аш | C26: Капуста тушеная с мясом | D26: 180 | E26: 250.30
C27: Напиток из шиповника | D27: 180/6 | E27: 79.38
C28: Хлеб пшеничный | D28: 30 | E28: 70.50
D29: 152,36 руб | E29: =E28+E27+E26+E25+E24+E23+E22+E21+E20+E19+E18+E17+E16+E15+E14+E13 -> 1766.52

Sheet 12 апр. (hidden)
B2: Согласно контракту
B3: №2024.617
B4: от 23.12.2023 г.
C7: 1 день
B9: Д/сад | C9: МБДОУ "ЦРР-д/с № 22"Алсу" | D9: День | E9: 2024-04-12
B11: 10 | C11: Блюдо | D11: С 3 лет | E11: до 7 лет
D12: грамм | E12: ккал
B13: Завтрак/иртәнге аш | C13: Каша Дружба молочная с маслом сливочным | D13: 180/5 | E13: 207.60
C14: Кофейный напиток с молоком | D14: 180/6 | E14: 42.67
C15: Бутерброд с маслом сливочным | D15: 30/5 | E15: 111.60
B16: 09.00 | C16: Яблоко | D16: 100 | E16: 47.0
B17: Обед/төшке аш | C17: Икра кабачковая | D17: 50 | E17: 34.80
C18: Суп вермишелевый с картофелем с мясными фрикадельками | D18: 180/15 | E18: 114.56
C19: Котлеты рубленные из говядины | D19: 70 | E19: 211.06
C20: Каша гречневая вязкая с маслом сливочным | D20: 130/3 | E20: 145.86
C21: Напиток из сухофруктов | D21: 180 | E21: 68.18
C22: Хлеб ржаной | D22: 45 | E22: 89.10
C23: Хлеб пшеничный | D23: 25 | E23: 58.75
B24: Полдник/төштән соңгы аш | C24: Кефир | D24: 180 | E24: 90.00
C25: Вафли | D25: 20 | E25: 192.00
B26: Ужин/кичке аш | C26: Котлеты рыбные | D26: 70 | E26: 124.56
C27: Пюре картофельное | D27: 140 | E27: 128.10
C28: Чай с сахаром | D28: 180/6 | E28: 24.10
C29: Хлеб пшеничный | D29: 30 | E29: 70.50
D30: 152,36 руб | E30: =E29+E28+E27+E26+E25+E24+E23+E22+E21+E20+E19+E18+E17+E16+E15+E14+E13 -> 1760.44

Sheet 15 апр. (hidden)
B2: Согласно контракту
B3: №2024.617
B4: от 23.12.2023 г.
C6: 2 день
B9: Д/сад | C9: МБДОУ "ЦРР-д/с № 22"Алсу" | D9: День | E9: 2024-04-15
B11: 10 | C11: Блюдо | D11: С 3 лет | E11: до 7 лет
D12: грамм | E12: ккал
B13: Завтрак/иртәнге аш | C13: Каша полбяная молочная с маслом сливочным | D13: 180/3 | E13: 202.64
C14: какао с молоком | D14: 180 | E14: 58.83
C15: Бутерброд с сыром, маслом сливочным | D15: 30/5/5 | E15: 128.77
B16: 09.00 | C16: Сок | D16: 180 | E16: 94.4
B17: Обед/төшке аш | C17: Салат из картофеля с солеными огурцами | D17: 60 | E17: 66.84
C18: Борщ со свежей капустой, картофелем на курином б-не, с куриными фрикадельками, со сметаной | D18: 180/10/7 | E18: 106.63
C19: Фрикадельки куриные в молочном соусе | D19: 50/25 | E19: 136.30
C20: Макароны отварны с маслом сливочным | D20: 130/3 | E20: 155.22
C21: Компот из свежих яблок | D21: 180 | E21: 55.26
C22: Хлеб пшеничный | D22: 25 | E22: 58.75
C23: Хлеб ржаной | D23: 45 | E23: 89.10
B24: Полдник/төштән соңгы аш | C24: Ряженка | D24: 180 | E24: 91.80
C25: Булочка дорожная | D25: 50 | E25: 165.50
B26: Ужин/кичке аш | C26: Запеканка творожная с повидлом | D26: 120/30 | E26: 418.50
C27: Чай с сахаром и лимоном | D27: 180/6/7 | E27: 26.48
D28: 152,36 руб | E28: =E27+E26+E25+E24+E23+E22+E21+E20+E18+E19+E17+E16+E15+E14 -> 1652.38

Sheet 13 мая (hidden)
B2: Согласно контракту
B3: №2024.617
B4: от 23.12.2023 г.
C6: 3 день
B9: Д/сад | C9: МБДОУ "ЦРР-д/с № 22"Алсу" | D9: День | E9: 2024-05-13
B11: 10 | C11: Блюдо | D11: С 3 лет | E11: до 7 лет
D12: грамм | E12: ккал
B13: Завтрак/иртәнге аш | C13: Каша кукурузная молочная с маслом сливочным | D13: 180/5 | E13: 274.16
C14: Чай с сахаром и молоком | D14: 180/6 | E14: 72.7
C15: Бутерброд с маслом сливочным | D15: 30/5 | E15: 111.60
B16: 09.00 | C16: Яблоко | D16: 100 | E16: 47.0
B17: Обед/төшке аш | C17: Салат из припущенной моркови с яблоками60 | D17: 60 | E17: 24.24
C18: Суп картофельный гороховый на мясном б-не с мясом | D18: 180/10 | E18: 121.57
C19: плов из отварной говядины | D19: 200 | E19: 396.00
C20: Компот из урюка | D20: 180 | E20: 68.20
C21: Хлеб пшеничный | D21: 25 | E21: 58.75
C22: Хлеб ржаной | D22: 45 | E22: 89.10
B23: Полдник/төштән соңгы аш | C23: Молоко кипяченое | D23: 180 | E23: 75.24
C24: Печенье | D24: 20 | E24: 89.10
B25: Ужин/кичке аш | C25: Фрикадельки рыбный отварные | D25: 80 | E25: 88.00
C26: Картофель тушеный с овощами в соусе | D26: 140 | E26: 201.60
C27: Напиток из шиповника | D27: 180/6 | E27: 79.38
C28: Хлеб пшеничный | D28: 30 | E28: 70.50
D29: 152,36 руб | E29: =E28+E27+E26+E25+E24+E23+E22+E21+E20+E19+E18+E17+E16+E15+E14+E13 -> 1867.14

Sheet 14 мая (hidden)
B2: Согласно контракту
B3: №2024.617
B4: от 23.12.2023 г.
C7: 4 день
B9: Д/сад | C9: МБДОУ "ЦРР-д/с № 22"Алсу" | D9: День | E9: 2024-05-14
B11: 10 | C11: Блюдо | D11: С 3 лет | E11: до 7 лет
D12: грамм | E12: ккал
B13: Завтрак/иртәнге аш | C13: Каша ячневая молочная с маслом сливочным | D13: 180/3 | E13: 223.41
C14: Кофейный напиток с молоком | D14: 180/6 | E14: 42.67
C15: Бутерброд с маслом сливочным, повидлом | D15: 30/5/10 | E15: 119.80
B16: 09.00 | C16: Сок | D16: 180 | E16: 94.4
B17: Обед/төшке аш | C17: Салат из зеленого горошка к/с | D17: 50 | E17: 41.80
C18: Суп картофельный с пшенной крупой на курином б-не, с мясом птицы | D18: 180/10 | E18: 76.57
C19: птица, тушенная с соусе с овощами | D19: 200 | E19: 264.00
C20: Компот из изюма и яблок | D20: 180 | E20: 108.00
C21: Хлеб пшеничный | D21: 225 | E21: 58.75
C22: Хлеб ржаной | D22: 45 | E22: 89.10
B23: Полдник/төштән соңгы аш | C23: Кефир | D23: 180 | E23: 90.00
C24: Кондитерские изделия (печенье) | D24: 20 | E24: 90.20
B25: Ужин/кичке аш | C25: Омлет натуральный с сыром | D25: 150 | E25: 347.50
C26: Чай с сахаром | D26: 180/6 | E26: 24.10
C27: Хлеб пшеничный | D27: 30 | E27: 70.50
D28: 152,36 руб | E28: =E27+E26+E25+E24+E23+E22+E21+E20+E19+E18+E17+E16+E15+E14+E13 -> 1740.80

Sheet 15 мая (hidden)
B2: Согласно контракту
B3: №2024.617
B4: от 23.12.2023 г.
C6: 5 день
B9: Д/сад | C9: МБДОУ "ЦРР-д/с № 22"Алсу" | D9: День | E9: 2024-05-15
B11: 10 | C11: Блюдо | D11: С 3 лет | E11: до 7 лет
D12: грамм | E12: ккал
B13: Завтрак/иртәнге аш | C13: Суп молочный с геркулесовой крупой | D13: 200 | E13: 71.20
C14: какао с молоком | D14: 180 | E14: 58.83
C15: Бутерброд с сыром, маслом сливочным | D15: 30/5/5 | E15: 128.77
B16: 09.00 | C16: Сок | D16: 180 | E16: 94.4
B17: Обед/төшке аш | C17: Салат из свеклы отварной | D17: 50 | E17: 46.40
C18: Рассольник домашний на курином б-не, с куриными фрикадельками со сметаной | D18: 180/11/5 | E18: 119.17
C19: Запеканка картофельная с мясом птицы со сметанным соусом | D19: 150/30 | E19: 243.48
C20: Кисель | D20: 180 | E20: 75.24
C21: Хлеб пшеничный | D21: 25 | E21: 58.75
C22: Хлеб ржаной | D22: 45 | E22: 89.10
B23: Полдник/төштән соңгы аш | C23: Молоко кипяченое | D23: 180 | E23: 75.24
C24: Печенье | D24: 20 | E24: 89.10
B25: Ужин/кичке аш | C25: Эч-почмак с говядиной | D25: 100 | E25: 414.29
C26: Чай с сахаром и лимоном | D26: 180/6/7 | E26: 26.48
D27: 152,36 руб | E27: =E26+E25+E24+E23+E22+E21++E19+E18+E17+E16+E15+E14+E13 -> 1515.21

Sheet 16 мая (hidden)
B2: Согласно контракту
B3: №2024.617
B4: от 23.12.2023 г.
C7: 6 день
B9: Д/сад | C9: МБДОУ "ЦРР-д/с № 22"Алсу" | D9: День | E9: 2024-05-16
B11: 10 | C11: Блюдо | D11: С 3 лет | E11: до 7 лет
D12: грамм | E12: ккал
B13: Завтрак/иртәнге аш | C13: Каша пшенная молочная с маслом сливочным | D13: 180/3 | E13: 208.76
C14: Чай с молоком и сахаром | D14: 180/6 | E14: 75.76
C15: Бутерброд с маслом сливочным | D15: 30/5 | E15: 111.60
B16: 09.00 | C16: Сок | D16: 180 | E16: 94.4
B17: Обед/төшке аш | C17: Салат картофельный с морковуью и кукурузой к/с | D17: 60 | E17: 24.24
C18: Суп из овощей на курином б-не, с мясными фрикадельками, со сметаной | D18: 180/11/7 | E18: 101.49
C19: Ежики куриные в сметанно-томатномном соусе | D19: 50/25 | E19: 123.03
C20: вермишель отварной | D20: 130 | E20: 135.46
C21: Напиток из сухофруктов | D21: 180 | E21: 87.50
C22: Хлеб пшеничный | D22: 25 | E22: 58.75
C23: Хлеб ржаной | D23: 45 | E23: 89.10
B24: Полдник/төштән соңгы аш | C24: Катык | D24: 180 | E24: 91.86
C25: Булочка с сахаром | D25: 50 | E25: 170.67
B26: Ужин/кичке аш | C26: Запеканка творожная с повидлом | D26: 120/30 | E26: 418.50
C27: Напиок из шиповника | D27: 180/5 | E27: 24.10
D28: 152,36 руб | E28: =E27+E26+E25+E24+E23+E22+E20+E19+E18+E17+E16+E15+E14+E13 -> 1727.72

Sheet 17 мая (hidden)
B2: Согласно контракту
B3: №2024.617
B4: от 23.12.2023 г.
C6: 7 день
B9: Д/сад | C9: МБДОУ "ЦРР-д/с № 22"Алсу" | D9: День | E9: 2024-05-17
B11: 10 | C11: Блюдо | D11: С 3 лет | E11: до 7 лет
D12: грамм | E12: ккал
B13: Завтрак/иртәнге аш | C13: Каша кукурузная молочная с маслом сливочным | D13: 180/5 | E13: 274.16
C14: Кофейный напиток с молоком | D14: 180 | E14: 42.67
C15: Бутерброд с маслом сливочным | D15: 30/5 | E15: 111.60
C16: Сыр порционно | D16: 10 | E16: 34.33
B17: 09.00 | C17: Сок | D17: 180 | E17: 94.4
B18: Обед/төшке аш | C18: Салат из квашенной капусты | D18: 60 | E18: 53.88
C19: Суп картофельный с клецками на мясном б-не с мясом | D19: 180/10 | E19: 121.66
C20: Гуляш из отварной говядины | D20: 40/40 | E20: 131.20
C21: Пюре картофельное | D21: 140 | E21: 128.10
C22: Компот из свежих фруктов | D22: 180 | E22: 55.26
C23: Хлеб пшеничный | D23: 25 | E23: 58.75
C24: Хлеб ржаной | D24: 45 | E24: 89.10
B25: Полдник/төштән соңгы аш | C25: Кефир | D25: 180 | E25: 90.00
C26: мармелад | D26: 10 | E26: 83.00
B27: Ужин/кичке аш | C27: Биточки-рубленные из рыбы | D27: 70 | E27: 124.60
C28: Каша гречневая рассыпчатая с овощами с маслом сливочным | D28: 130/3 | E28: 181.83
C29: Чай с сахаром и лимоном | D29: 180/6/7 | E29: 26.48
C30: Хлеб пшеничный | D30: 30 | E30: 70.50
D31: 152,36 руб | E31: =E29+E27+E26+E25+E24+E23+E21+E20+E19+E18+E17+E15+E14+E13 -> 1429.60

Sheet 20 мая (hidden)
B2: Согласно контракту
B3: №2024.617
B4: от 23.12.2023 г.
C7: 8 день
B9: Д/сад | C9: МБДОУ "ЦРР-д/с № 22"Алсу" | D9: День | E9: 2024-05-20
B11: 10 | C11: Блюдо | D11: С 3 лет | E11: до 7 лет
D12: грамм | E12: ккал
B13: Завтрак/иртәнге аш | C13: Каша манная молочная с маслом сливочным | D13: 180/5 | E13: 199.50
C14: Какао с молоком | D14: 180/6 | E14: 58.83
C15: Бутерброд с маслом сливочным | D15: 30/5 | E15: 111.60
B16: 09.00 | C16: Апельсин | D16: 100 | E16: 47.0
B17: Обед/төшке аш | C17: Икра кабачковая | D17: 50 | E17: 62.34
C18: Щи со свежей капустой с картофелем на курином б-не, с куриными фрикадельками и со сметаной | D18: 180/11/7 | E18: 104.59
C19: Биточки домашние | D19: 70 | E19: 225.40
C20: Рис отварной рассыпчатый с маслом сливочным | D20: 130/20 | E20: 192.01
C21: Компот из изюма | D21: 180 | E21: 62.10
C22: Хлеб пшеничный | D22: 25 | E22: 58.75
C23: Хлеб ржаной | D23: 45 | E23: 89.10
B24: Полдник/төштән соңгы аш | C24: Молоко кипяченое | D24: 180 | E24: 96.30
C25: Кондитерские изделия (печенье) | D25: 20 | E25: 90.20
B26: Ужин/кичке аш | C26: Омлет натуральный | D26: 150 | E26: 335.23
C27: Чай с сахаром | D27: 180/6 | E27: 24.10
C28: Хлеб пшеничный | D28: 30 | E28: 70.50
D29: 152,36 руб | E29: =E27+E26+E25+E24+E23+E22+E20+E19+E18+E17+E16+E15+E14+E13 -> 1694.95

Sheet 1 августа (hidden)
B2: Согласно контракту
B3: №2024.617
B4: от 23.12.2023 г.
C7: 9 день
B9: Д/сад | C9: МБДОУ "ЦРР-д/с № 22"Алсу"
B11: 10 | C11: Блюдо | D11: С 3 лет | E11: до 7 лет
D12: грамм | E12: ккал
B13: Завтрак/иртәнге аш | C13: Каша пшеничная молочная с маслом сливочным | D13: 180/3 | E13: 241.16
C14: Чай с молоком и сахаром | D14: 180/6 | E14: 75.76
C15: Бутерброд с сыром, маслом сливочным | D15: 30/5/5 | E15: 128.77
B16: 09.00 | C16: Яблоко | D16: 100 | E16: 47.0
B17: Обед/төшке аш | C17: огурцы соленые | D17: 50 | E17: 53.88
C18: суп лапша домашняя на курином б-не, с мясом птицы | D18: 180/10 | E18: 114.78
C19: Жаркое из птицы по домашнему | D19: 180 | E19: 303.43
C20: Напиток из сухофруктов | D20: 180 | E20: 87.50
C21: Хлеб пшеничный | D21: 25 | E21: 58.75
C22: Хлеб ржаной | D22: 45 | E22: 89.10
B23: Полдник/төштән соңгы аш | C23: кисломолочный напиток | D23: 180 | E23: 96.30
C24: Кондитерские изделия (печенье) | D24: 20 | E24: 90.20
B25: Ужин/кичке аш | C25: Ватрушка с творогом | D25: 90 | E25: 404.05
C26: чай с сахаром и лимоном | D26: 180/6/7 | E26: 26.48
D28: 152,36 руб | E28: =E26+E25+E24+E23+E22+E21+E20+E19+E18+E17+E16+E15+E14+E13 -> 1817.16

Sheet 2 августа (hidden)
B2: Согласно контракту
B3: №2024.617
B4: от 23.12.2023 г.
C6: 10 день
B9: Д/сад | C9: МБДОУ "ЦРР-д/с № 22"Алсу"
B11: 10 | C11: Блюдо | D11: С 3 лет | E11: до 7 лет
D12: грамм | E12: ккал
B13: Завтрак/иртәнге аш | C13: Каша геркулесовая молочная с маслом сливочным | D13: 180/5 | E13: 251.91
C14: Кофейный напиток с молоком | D14: 180/6 | E14: 42.67
C15: Бутерброд с маслом сливочным | D15: 30/5 | E15: 111.60
B16: 09.00 | C16: Сок | D16: 180 | E16: 96.0
B17: Обед/төшке аш | C17: Салат из свеклы с сыром | D17: 60 | E17: 78.42
C18: Рассольник ленинградский с куриными фрикадельками, со сметаной | D18: 180/11/7 | E18: 117.51
C19: Котлеты рыбные с маслом сливочным | D19: 70/3 | E19: 144.36
C20: Макаронные изделия отварные с овощами | D20: 130 | E20: 163.28
C21: Кисель | D21: 180 | E21: 75.24
C22: хлеб пшеничный | D22: 25 | E22: 58.75
C23: Хлеб ржаной | D23: 45 | E23: 89.10
B24: Полдник/төштән соңгы аш | C24: Молоко кипяченое | D24: 180 | E24: 96.30
C25: Кондитерские изделия (печенье) | D25: 20 | E25: 90.20
B26: Ужин/кичке аш | C26: Капуста тушеная с мясом | D26: 180 | E26: 250.30
C27: Напиток из шиповника | D27: 180/6 | E27: 79.38
C28: Хлеб пшеничный | D28: 30 | E28: 70.50
D29: 152,36 руб | E29: =E28+E27+E26+E25+E24+E23+E22+E21+E20+E19+E18+E17+E16+E15+E14+E13 -> 1815.52

Sheet 2 сентября
B2: Согласно контракту
B3: №2024.617
B4: от 23.12.2023 г.
C7: 1 день
B9: Д/сад | C9: МБДОУ "ЦРР-д/с № 22"Алсу"
B11: 10 | C11: Блюдо | D11: С 3 лет | E11: до 7 лет
D12: грамм | E12: ккал
B13: Завтрак/иртәнге аш | C13: Каша Дружба молочная с маслом сливочным | D13: 180/5 | E13: 207.60
C14: Кофейный напиток с молоком | D14: 180/6 | E14: 42.67
C15: Бутерброд с маслом сливочным | D15: 30/5 | E15: 111.60
B16: 09.00 | C16: Яблоко | D16: 100 | E16: 47.0
B17: Обед/төшке аш | C17: Салат из моркови | D17: 60 | E17: 34.80
C18: Суп вермишелевый с картофелем с мясными фрикадельками | D18: 180/15 | E18: 114.56
C19: Котлеты рубленные из говядины | D19: 70 | E19: 211.06
C20: Каша гречневая вязкая с маслом сливочным | D20: 130/3 | E20: 145.86
C21: Напиток из сухофруктов | D21: 180 | E21: 68.18
C22: Хлеб ржаной | D22: 45 | E22: 89.10
C23: Хлеб пшеничный | D23: 25 | E23: 58.75
B24: Полдник/төштән соңгы аш | C24: Кефир | D24: 180 | E24: 90.00
C25: Вафли | D25: 20 | E25: 192.00
B26: Ужин/кичке аш | C26: Котлеты рыбные | D26: 70 | E26: 124.56
C27: Пюре картофельное | D27: 140 | E27: 128.10
C28: Чай с сахаром | D28: 180/6 | E28: 24.10
C29: Хлеб пшеничный | D29: 30 | E29: 70.50
D30: 152,36 руб | E30: =E29+E28+E27+E26+E25+E24+E23+E22+E21+E20+E19+E18+E17+E16+E15+E14+E13 -> 1760.44

Sheet 3 сентября
B2: Согласно контракту
B3: №2024.617
B4: от 23.12.2023 г.
C6: 2 день
B9: Д/сад | C9: МБДОУ "ЦРР-д/с № 22"Алсу"
B11: 10 | C11: Блюдо | D11: С 3 лет | E11: до 7 лет
D12: грамм | E12: ккал
B13: Завтрак/иртәнге аш | C13: Каша полбяная молочная с маслом сливочным | D13: 180/3 | E13: 202.64
C14: какао с молоком | D14: 180 | E14: 58.83
C15: Бутерброд с сыром, маслом сливочным | D15: 30/5/5 | E15: 128.77
B16: 09.00 | C16: Сок | D16: 180 | E16: 94.4
B17: Обед/төшке аш | C17: Салат из картофеля с солеными огурцами | D17: 60 | E17: 66.84
C18: Борщ со свежей капустой, картофелем на курином б-не, с куриными фрикадельками, со сметаной | D18: 180/10/7 | E18: 106.63
C19: Фрикадельки куриные в молочном соусе | D19: 50/25 | E19: 136.30
C20: Макароны отварны с маслом сливочным | D20: 130/3 | E20: 155.22
C21: Компот из свежих яблок | D21: 180 | E21: 55.26
C22: Хлеб пшеничный | D22: 25 | E22: 58.75
C23: Хлеб ржаной | D23: 45 | E23: 89.10
B24: Полдник/төштән соңгы аш | C24: Ряженка | D24: 180 | E24: 91.80
C25: Булочка дорожная | D25: 50 | E25: 165.50
B26: Ужин/кичке аш | C26: Запеканка творожная с повидлом | D26: 120/30 | E26: 418.50
C27: Чай с сахаром и лимоном | D27: 180/6/7 | E27: 26.48
D28: 152,36 руб | E28: =E27+E26+E25+E24+E23+E22+E21+E20+E18+E19+E17+E16+E15+E14 -> 1652.38

Sheet 4 сентября
B2: Согласно контракту
B3: №2024.617
B4: от 23.12.2023 г.
C6: 3 день
B9: Д/сад | C9: МБДОУ "ЦРР-д/с № 22"Алсу"
B11: 10 | C11: Блюдо | D11: С 3 лет | E11: до 7 лет
D12: грамм | E12: ккал
B13: Завтрак/иртәнге аш | C13: Каша кукурузная молочная с маслом сливочным | D13: 180/5 | E13: 274.16
C14: Чай с сахаром и молоком | D14: 180/6 | E14: 72.7
C15: Бутерброд с маслом сливочным | D15: 30/5 | E15: 111.60
B16: 09.00 | C16: Яблоко | D16: 100 | E16: 47.0
B17: Обед/төшке аш | C17: Салат из припущенной моркови с яблоками60 | D17: 60 | E17: 24.24
C18: Суп картофельный гороховый на мясном б-не с мясом | D18: 180/10 | E18: 121.57
C19: плов из отварной говядины | D19: 200 | E19: 396.00
C20: Компот из урюка | D20: 180 | E20: 68.20
C21: Хлеб пшеничный | D21: 25 | E21: 58.75
C22: Хлеб ржаной | D22: 45 | E22: 89.10
B23: Полдник/төштән соңгы аш | C23: Молоко кипяченое | D23: 180 | E23: 75.24
C24: Печенье | D24: 20 | E24: 89.10
B25: Ужин/кичке аш | C25: Фрикадельки рыбный отварные | D25: 80 | E25: 88.00
C26: Картофель тушеный с овощами в соусе | D26: 140 | E26: 201.60
C27: Напиток из шиповника | D27: 180/6 | E27: 79.38
C28: Хлеб пшеничный | D28: 30 | E28: 70.50
D29: 152,36 руб | E29: =E28+E27+E26+E25+E24+E23+E22+E21+E20+E19+E18+E17+E16+E15+E14+E13 -> 1867.14

Sheet 5 сентября
B2: Согласно контракту
B3: №2024.617
B4: от 23.12.2023 г.
C7: 4 день
B9: Д/сад | C9: МБДОУ "ЦРР-д/с № 22"Алсу"
B11: 10 | C11: Блюдо | D11: С 3 лет | E11: до 7 лет
D12: грамм | E12: ккал
B13: Завтрак/иртәнге аш | C13: Каша ячневая молочная с маслом сливочным | D13: 180/3 | E13: 223.41
C14: Кофейный напиток с молоком | D14: 180/6 | E14: 42.67
C15: Бутерброд с маслом сливочным, повидлом | D15: 30/5/10 | E15: 119.80
B16: 09.00 | C16: Сок | D16: 180 | E16: 94.4
B17: Обед/төшке аш | C17: Салат из зеленого горошка к/с | D17: 50 | E17: 41.80
C18: Суп картофельный с пшенной крупой на курином б-не, с мясом птицы | D18: 180/10 | E18: 76.57
C19: птица, тушенная с соусе с овощами | D19: 200 | E19: 264.00
C20: Компот из изюма и яблок | D20: 180 | E20: 108.00
C21: Хлеб пшеничный | D21: 225 | E21: 58.75
C22: Хлеб ржаной | D22: 45 | E22: 89.10
B23: Полдник/төштән соңгы аш | C23: Кефир | D23: 180 | E23: 90.00
C24: Кондитерские изделия (печенье) | D24: 20 | E24: 90.20
B25: Ужин/кичке аш | C25: Омлет натуральный с сыром | D25: 150 | E25: 347.50
C26: Чай с сахаром | D26: 180/6 | E26: 24.10
C27: Хлеб пшеничный | D27: 30 | E27: 70.50
D28: 152,36 руб | E28: =E27+E26+E25+E24+E23+E22+E21+E20+E19+E18+E17+E16+E15+E14+E13 -> 1740.80

Sheet 6 сентября
B2: Согласно контракту
B3: №2024.617
B4: от 23.12.2023 г.
C6: 5 день
B9: Д/сад | C9: МБДОУ "ЦРР-д/с № 22"Алсу"
B11: 10 | C11: Блюдо | D11: С 3 лет | E11: до 7 лет
D12: грамм | E12: ккал
B13: Завтрак/иртәнге аш | C13: Суп молочный с геркулесовой крупой | D13: 200 | E13: 71.20
C14: какао с молоком | D14: 180 | E14: 58.83
C15: Бутерброд с сыром, маслом сливочным | D15: 30/5/5 | E15: 128.77
B16: 09.00 | C16: Яблоко | D16: 100 | E16: 47.0
B17: Обед/төшке аш | C17: Салат из свеклы отварной | D17: 50 | E17: 46.40
C18: Рассольник домашний на курином б-не, с куриными фрикадельками со сметаной | D18: 180/11/5 | E18: 119.17
C19: Запеканка картофельная с мясом птицы со сметанным соусом | D19: 150/30 | E19: 243.48
C20: Кисель | D20: 180 | E20: 75.24
C21: Хлеб пшеничный | D21: 25 | E21: 58.75
C22: Хлеб ржаной | D22: 45 | E22: 89.10
B23: Полдник/төштән соңгы аш | C23: Молоко кипяченое | D23: 180 | E23: 75.24
C24: Печенье | D24: 20 | E24: 89.10
B25: Ужин/кичке аш | C25: Эч-почмак с говядиной | D25: 100 | E25: 414.29
C26: Чай с сахаром и лимоном | D26: 180/6/7 | E26: 26.48
D27: 152,36 руб | E27: =E26+E25+E24+E23+E22+E21++E19+E18+E17+E16+E15+E14+E13 -> 1467.81

Sheet 9 сентября
B2: Согласно контракту
B3: №2024.617
B4: от 23.12.2023 г.
C7: 6 день
B9: Д/сад | C9: МБДОУ "ЦРР-д/с № 22"Алсу"
B11: 10 | C11: Блюдо | D11: С 3 лет | E11: до 7 лет
D12: грамм | E12: ккал
B13: Завтрак/иртәнге аш | C13: Каша пшенная молочная с маслом сливочным | D13: 180/3 | E13: 208.76
C14: Чай с молоком и сахаром | D14: 180/6 | E14: 75.76
C15: Бутерброд с маслом сливочным | D15: 30/5 | E15: 111.60
B16: 09.00 | C16: Сок | D16: 180 | E16: 94.4
B17: Обед/төшке аш | C17: Салат из моркови | D17: 60 | E17: 24.24
C18: Суп из овощей на курином б-не, с мясными фрикадельками, со сметаной | D18: 180/11/7 | E18: 101.49
C19: Ежики куриные в сметанно-томатномном соусе | D19: 50/25 | E19: 123.03
C20: вермишель отварной | D20: 130 | E20: 135.46
C21: Напиток из сухофруктов | D21: 180 | E21: 87.50
C22: Хлеб пшеничный | D22: 25 | E22: 58.75
C23: Хлеб ржаной | D23: 45 | E23: 89.10
B24: Полдник/төштән соңгы аш | C24: Катык | D24: 180 | E24: 91.86
C25: Булочка с сахаром | D25: 50 | E25: 170.67
B26: Ужин/кичке аш | C26: Запеканка творожная с повидлом | D26: 120/30 | E26: 418.50
C27: Напиок из шиповника | D27: 180/5 | E27: 24.10
D28: 152,36 руб | E28: =E27+E26+E25+E24+E23+E22+E20+E19+E18+E17+E16+E15+E14+E13 -> 1727.72

Sheet 10 сентября
B2: Согласно контракту
B3: №2024.617
B4: от 23.12.2023 г.
C6: 7 день
B9: Д/сад | C9: МБДОУ "ЦРР-д/с № 22"Алсу"
B11: 10 | C11: Блюдо | D11: С 3 лет | E11: до 7 лет
D12: грамм | E12: ккал
B13: Завтрак/иртәнге аш | C13: Каша кукурузная молочная с маслом сливочным | D13: 180/5 | E13: 274.16
C14: Кофейный напиток с молоком | D14: 180 | E14: 42.67
C15: Бутерброд с маслом сливочным | D15: 30/5 | E15: 111.60
C16: Сыр порционно | D16: 10 | E16: 34.33
B17: 09.00 | C17: Яблоко | D17: 100 | E17: 47.0
B18: Обед/төшке аш | C18: Салат из отварной свеклы с маслом растительным | D18: 60 | E18: 53.88
C19: Суп картофельный с клецками на мясном б-не с мясом | D19: 180/10 | E19: 121.66
C20: Гуляш из отварной говядины | D20: 40/40 | E20: 131.20
C21: Пюре картофельное | D21: 140 | E21: 128.10
C22: Компот из свежих фруктов | D22: 180 | E22: 55.26
C23: Хлеб пшеничный | D23: 25 | E23: 58.75
C24: Хлеб ржаной | D24: 45 | E24: 89.10
B25: Полдник/төштән соңгы аш | C25: Кефир | D25: 180 | E25: 90.00
C26: мармелад | D26: 10 | E26: 83.00
B27: Ужин/кичке аш | C27: Расстегай с рыбой | D27: 100 | E27: 325.00
C29: Чай с сахаром и лимоном | D29: 180/6/7 | E29: 26.48
D31: 152,36 руб | E31: =E29+E27+E26+E25+E24+E23+E21+E20+E19+E18+E17+E15+E14+E13 -> 1582.60

Sheet 11 сентября
B2: Согласно контракту
B3: №2024.617
B4: от 23.12.2023 г.
C7: 8 день
B9: Д/сад | C9: МБДОУ "ЦРР-д/с № 22"Алсу"
B11: 10 | C11: Блюдо | D11: С 3 лет | E11: до 7 лет
D12: грамм | E12: ккал
B13: Завтрак/иртәнге аш | C13: Каша манная молочная с маслом сливочным | D13: 180/5 | E13: 199.50
C14: Какао с молоком | D14: 180/6 | E14: 58.83
C15: Бутерброд с маслом сливочным | D15: 30/5 | E15: 111.60
B16: 09.00 | C16: Сок | D16: 180 | E16: 96.4
B17: Обед/төшке аш | C17: помидоры свежие | D17: 60 | E17: 13.50
C18: Щи со свежей капустой с картофелем на курином б-не, с куриными фрикадельками и со сметаной | D18: 180/11/7 | E18: 104.59
C19: Биточки домашние | D19: 70 | E19: 225.40
C20: Рис отварной рассыпчатый с маслом сливочным | D20: 130/20 | E20: 192.01
C21: Компот из изюма | D21: 180 | E21: 62.10
C22: Хлеб пшеничный | D22: 25 | E22: 58.75
C23: Хлеб ржаной | D23: 45 | E23: 89.10
B24: Полдник/төштән соңгы аш | C24: Молоко кипяченое | D24: 180 | E24: 96.30
C25: Кондитерские изделия (печенье) | D25: 20 | E25: 90.20
B26: Ужин/кичке аш | C26: Омлет натуральный | D26: 150 | E26: 335.23
C27: Чай с сахаром | D27: 180/6 | E27: 24.10
C28: Хлеб пшеничный | D28: 30 | E28: 70.50
D29: 152,36 руб | E29: =E27+E26+E25+E24+E23+E22+E20+E19+E18+E17+E16+E15+E14+E13 -> 1695.51

Sheet 12 сентября
B2: Согласно контракту
B3: №2024.617
B4: от 23.12.2023 г.
C7: 9 день
B9: Д/сад | C9: МБДОУ "ЦРР-д/с № 22"Алсу"
B11: 10 | C11: Блюдо | D11: С 3 лет | E11: до 7 лет
D12: грамм | E12: ккал
B13: Завтрак/иртәнге аш | C13: Каша пшеничная молочная с маслом сливочным | D13: 180/3 | E13: 241.16
C14: Чай с молоком и сахаром | D14: 180/6 | E14: 75.76
C15: Бутерброд с сыром, маслом сливочным | D15: 30/5/5 | E15: 128.77
B16: 09.00 | C16: Яблоко | D16: 100 | E16: 47.0
B17: Обед/төшке аш | C17: Салат из свежей капусты | D17: 60 | E17: 53.88
C18: суп лапша домашняя на курином б-не, с мясом птицы | D18: 180/10 | E18: 114.78
C19: Жаркое из птицы по домашнему | D19: 180 | E19: 303.43
C20: Напиток из сухофруктов | D20: 180 | E20: 87.50
C21: Хлеб пшеничный | D21: 25 | E21: 58.75
C22: Хлеб ржаной | D22: 45 | E22: 89.10
B23: Полдник/төштән соңгы аш | C23: кисломолочный напиток | D23: 180 | E23: 96.30
C24: Кондитерские изделия (печенье) | D24: 20 | E24: 90.20
B25: Ужин/кичке аш | C25: Ватрушка с творогом | D25: 90 | E25: 404.05
C26: чай с сахаром и лимоном | D26: 180/6/7 | E26: 26.48
D28: 152,36 руб | E28: =E26+E25+E24+E23+E22+E21+E20+E19+E18+E17+E16+E15+E14+E13 -> 1817.16

Sheet 13 сентября
B2: Согласно контракту
B3: №2024.617
B4: от 23.12.2023 г.
C6: 10 день
B9: Д/сад | C9: МБДОУ "ЦРР-д/с № 22"Алсу"
B11: 10 | C11: Блюдо | D11: С 3 лет | E11: до 7 лет
D12: грамм | E12: ккал
B13: Завтрак/иртәнге аш | C13: Каша геркулесовая молочная с маслом сливочным | D13: 180/5 | E13: 251.91
C14: Кофейный напиток с молоком | D14: 180/6 | E14: 42.67
C15: Бутерброд с маслом сливочным | D15: 30/5 | E15: 111.60
B16: 09.00 | C16: Сок | D16: 180 | E16: 96.4
B17: Обед/төшке аш | C17: Огурцы свежие порционно | D17: 60 | E17: 15.40
C18: Рассольник ленинградский с куриными фрикадельками, со сметаной | D18: 180/11/7 | E18: 117.51
C19: Котлеты рыбные с маслом сливочным | D19: 70/3 | E19: 144.36
C20: Макаронные изделия отварные с овощами | D20: 130 | E20: 163.28
C21: Кисель | D21: 180 | E21: 75.24
C22: хлеб пшеничный | D22: 25 | E22: 58.75
C23: Хлеб ржаной | D23: 45 | E23: 89.10
B24: Полдник/төштән соңгы аш | C24: Молоко кипяченое | D24: 180 | E24: 96.30
C25: Кондитерские изделия (печенье) | D25: 20 | E25: 90.20
B26: Ужин/кичке аш | C26: Капуста тушеная с мясом | D26: 180 | E26: 250.30
C27: Напиток из шиповника | D27: 180/6 | E27: 79.38
C28: Хлеб пшеничный | D28: 30 | E28: 70.50
D29: 152,36 руб | E29: =E28+E27+E26+E25+E24+E23+E22+E21+E20+E19+E18+E17+E16+E15+E14+E13 -> 1752.90

Sheet 16 сентября
B2: Согласно контракту
B3: №2024.617
B4: от 23.12.2023 г.
C7: 1 день
B9: Д/сад | C9: МБДОУ "ЦРР-д/с № 22"Алсу"
B11: 10 | C11: Блюдо | D11: С 3 лет | E11: до 7 лет
D12: грамм | E12: ккал
B13: Завтрак/иртәнге аш | C13: Каша Дружба молочная с маслом сливочным | D13: 180/5 | E13: 207.60
C14: Кофейный напиток с молоком | D14: 180/6 | E14: 42.67
C15: Бутерброд с маслом сливочным | D15: 30/5 | E15: 111.60
B16: 09.00 | C16: Яблоко | D16: 100 | E16: 47.0
B17: Обед/төшке аш | C17: Помидоры свежие | D17: 60 | E17: 14.30
C18: Суп вермишелевый с картофелем с мясными фрикадельками | D18: 180/15 | E18: 114.56
C19: Котлеты рубленные из говядины | D19: 70 | E19: 211.06
C20: Каша Ячневая вязкая с маслом сливочным | D20: 130/3 | E20: 145.86
C21: Напиток из сухофруктов | D21: 180 | E21: 68.18
C22: Хлеб ржаной | D22: 45 | E22: 89.10
C23: Хлеб пшеничный | D23: 25 | E23: 58.75
B24: Полдник/төштән соңгы аш | C24: Кефир | D24: 180 | E24: 90.00
C25: Вафли | D25: 20 | E25: 192.00
B26: Ужин/кичке аш | C26: Котлеты рыбные | D26: 70 | E26: 124.56
C27: Пюре картофельное | D27: 140 | E27: 128.10
C28: Чай с сахаром | D28: 180/6 | E28: 24.10
C29: Хлеб пшеничный | D29: 30 | E29: 70.50
D30: 152,36 руб | E30: =E29+E28+E27+E26+E25+E24+E23+E22+E21+E20+E19+E18+E17+E16+E15+E14+E13 -> 1739.94

Sheet 17 сентября
B2: Согласно контракту
B3: №2024.617
B4: от 23.12.2023 г.
C6: 2 день
B9: Д/сад | C9: МБДОУ "ЦРР-д/с № 22"Алсу"
B11: 10 | C11: Блюдо | D11: С 3 лет | E11: до 7 лет
D12: грамм | E12: ккал
B13: Завтрак/иртәнге аш | C13: Каша полбяная молочная с маслом сливочным | D13: 180/3 | E13: 202.64
C14: какао с молоком | D14: 180 | E14: 58.83
C15: Бутерброд с сыром, маслом сливочным | D15: 30/5/5 | E15: 128.77
B16: 09.00 | C16: Сок | D16: 180 | E16: 94.4
B17: Обед/төшке аш | C17: Салат из картофеля с солеными огурцами | D17: 60 | E17: 66.84
C18: Борщ со свежей капустой, картофелем на курином б-не, с куриными фрикадельками, со сметаной | D18: 180/10/7 | E18: 106.63
C19: Фрикадельки куриные в молочном соусе | D19: 50/25 | E19: 136.30
C20: Макароны отварны с маслом сливочным | D20: 130/3 | E20: 155.22
C21: Компот из свежих яблок | D21: 180 | E21: 55.26
C22: Хлеб пшеничный | D22: 25 | E22: 58.75
C23: Хлеб ржаной | D23: 45 | E23: 89.10
B24: Полдник/төштән соңгы аш | C24: Ряженка | D24: 180 | E24: 91.80
C25: Булочка дорожная | D25: 50 | E25: 165.50
B26: Ужин/кичке аш | C26: Запеканка творожная с повидлом | D26: 120/30 | E26: 418.50
C27: Чай с сахаром и лимоном | D27: 180/6/7 | E27: 26.48
D28: 152,36 руб | E28: =E27+E26+E25+E24+E23+E22+E21+E20+E18+E19+E17+E16+E15+E14 -> 1652.38

Sheet 18 сентября
B2: Согласно контракту
B3: №2024.617
B4: от 23.12.2023 г.
C6: 3 день
B9: Д/сад | C9: МБДОУ "ЦРР-д/с № 22"Алсу"
B11: 10 | C11: Блюдо | D11: С 3 лет | E11: до 7 лет
D12: грамм | E12: ккал
B13: Завтрак/иртәнге аш | C13: Каша кукурузная молочная с маслом сливочным | D13: 180/5 | E13: 274.16
C14: Чай с сахаром и молоком | D14: 180/6 | E14: 72.7
C15: Бутерброд с маслом сливочным | D15: 30/5 | E15: 111.60
B16: 09.00 | C16: Яблоко | D16: 100 | E16: 47.0
B17: Обед/төшке аш | C17: Салат из моркови | D17: 60 | E17: 24.24
C18: Суп картофельный гороховый на мясном б-не с мясом | D18: 180/10 | E18: 121.57
C19: плов из отварной говядины | D19: 200 | E19: 396.00
C20: Компот из урюка | D20: 180 | E20: 68.20
C21: Хлеб пшеничный | D21: 25 | E21: 58.75
C22: Хлеб ржаной | D22: 45 | E22: 89.10
B23: Полдник/төштән соңгы аш | C23: Молоко кипяченое | D23: 180 | E23: 75.24
C24: Печенье | D24: 20 | E24: 89.10
B25: Ужин/кичке аш | C25: Фрикадельки рыбный отварные | D25: 80 | E25: 88.00
C26: Картофель тушеный с овощами в соусе | D26: 140 | E26: 201.60
C27: Напиток из шиповника | D27: 180/6 | E27: 79.38
C28: Хлеб пшеничный | D28: 30 | E28: 70.50
D29: 152,36 руб | E29: =E28+E27+E26+E25+E24+E23+E22+E21+E20+E19+E18+E17+E16+E15+E14+E13 -> 1867.14

Sheet 19 сентября
B2: Согласно контракту
B3: №2024.617
B4: от 23.12.2023 г.
C7: 4 день
B9: Д/сад | C9: МБДОУ "ЦРР-д/с № 22"Алсу"
B11: 10 | C11: Блюдо | D11: С 3 лет | E11: до 7 лет
D12: грамм | E12: ккал
B13: Завтрак/иртәнге аш | C13: Каша ячневая молочная с маслом сливочным | D13: 180/3 | E13: 223.41
C14: Кофейный напиток с молоком | D14: 180/6 | E14: 42.67
C15: Бутерброд с маслом сливочным, повидлом | D15: 30/5/10 | E15: 119.80
B16: 09.00 | C16: Сок | D16: 180 | E16: 94.4
B17: Обед/төшке аш | C17: Помидоры свежие | D17: 60 | E17: 14.30
C18: Суп картофельный с пшенной крупой на курином б-не, с мясом птицы | D18: 180/10 | E18: 76.57
C19: птица, тушенная с соусе с овощами | D19: 200 | E19: 264.00
C20: Компот из изюма и яблок | D20: 180 | E20: 108.00
C21: Хлеб пшеничный | D21: 225 | E21: 58.75
C22: Хлеб ржаной | D22: 45 | E22: 89.10
B23: Полдник/төштән соңгы аш | C23: Кефир | D23: 180 | E23: 90.00
C24: Кондитерские изделия (печенье) | D24: 20 | E24: 90.20
B25: Ужин/кичке аш | C25: Омлет натуральный с сыром | D25: 150 | E25: 347.50
C26: Чай с сахаром | D26: 180/6 | E26: 24.10
C27: Хлеб пшеничный | D27: 30 | E27: 70.50
D28: 152,36 руб | E28: =E27+E26+E25+E24+E23+E22+E21+E20+E19+E18+E17+E16+E15+E14+E13 -> 1713.30

Sheet 20 сентября
B2: Согласно контракту
B3: №2024.617
B4: от 23.12.2023 г.
C6: 5 день
B9: Д/сад | C9: МБДОУ "ЦРР-д/с № 22"Алсу"
B11: 10 | C11: Блюдо | D11: С 3 лет | E11: до 7 лет
D12: грамм | E12: ккал
B13: Завтрак/иртәнге аш | C13: Суп молочный с геркулесовой крупой | D13: 200 | E13: 71.20
C14: какао с молоком | D14: 180 | E14: 58.83
C15: Бутерброд с сыром, маслом сливочным | D15: 30/5/5 | E15: 128.77
B16: 09.00 | C16: Яблоко | D16: 100 | E16: 47.0
B17: Обед/төшке аш | C17: Огурцы свежие | D17: 60 | E17: 14.30
C18: Рассольник домашний на курином б-не, с куриными фрикадельками со сметаной | D18: 180/11/5 | E18: 119.17
C19: Рис отварнйой рассыпчатый | D19: 130/2 | E19: 118.00
C20: бефстроганов из отварной говядины | D20: 40/40 | E20: 243.48
C21: Кисель | D21: 180 | E21: 75.24
C22: Хлеб пшеничный | D22: 25 | E22: 58.75
C23: Хлеб ржаной | D23: 45 | E23: 89.10
B24: Полдник/төштән соңгы аш | C24: Молоко кипяченое | D24: 180 | E24: 75.24
C25: Печенье | D25: 20 | E25: 89.10
B26: Ужин/кичке аш | C26: Эч-почмак с говядиной | D26: 100 | E26: 414.29
C27: Чай с сахаром и лимоном | D27: 180/6/7 | E27: 26.48
D28: 152,36 руб | E28: =E27+E26+E25+E24+E23+E22++E20+E18+E17+E16+E15+E14+E13 -> 1435.71

Sheet 23 сентября
B2: Согласно контракту
B3: №2024.617
B4: от 23.12.2023 г.
C7: 6 день
B9: Д/сад | C9: МБДОУ "ЦРР-д/с № 22"Алсу"
B11: 10 | C11: Блюдо | D11: С 3 лет | E11: до 7 лет
D12: грамм | E12: ккал
B13: Завтрак/иртәнге аш | C13: Каша пшенная молочная с маслом сливочным | D13: 180/3 | E13: 208.76
C14: Чай с молоком и сахаром | D14: 180/6 | E14: 75.76
C15: Бутерброд с маслом сливочным | D15: 30/5 | E15: 111.60
B16: 09.00 | C16: Сок | D16: 180 | E16: 94.4
B17: Обед/төшке аш | C17: Салат из моркови | D17: 60 | E17: 24.24
C18: Суп из овощей на курином б-не, с мясными фрикадельками, со сметаной | D18: 180/11/7 | E18: 101.49
C19: Ежики куриные в сметанно-томатномном соусе | D19: 50/25 | E19: 123.03
C20: вермишель отварной | D20: 130 | E20: 135.46
C21: Напиток из сухофруктов | D21: 180 | E21: 87.50
C22: Хлеб пшеничный | D22: 25 | E22: 58.75
C23: Хлеб ржаной | D23: 45 | E23: 89.10
B24: Полдник/төштән соңгы аш | C24: Катык | D24: 180 | E24: 91.86
C25: Булочка с сахаром | D25: 50 | E25: 170.67
B26: Ужин/кичке аш | C26: Запеканка творожная с повидлом | D26: 120/30 | E26: 418.50
C27: Напиок из шиповника | D27: 180/5 | E27: 24.10
D28: 152,36 руб | E28: =E27+E26+E25+E24+E23+E22+E20+E19+E18+E17+E16+E15+E14+E13 -> 1727.72

Sheet 24 сентября
B2: Согласно контракту
B3: №2024.617
B4: от 23.12.2023 г.
C6: 7 день
B9: Д/сад | C9: МБДОУ "ЦРР-д/с № 22"Алсу"
B11: 10 | C11: Блюдо | D11: С 3 лет | E11: до 7 лет
D12: грамм | E12: ккал
B13: Завтрак/иртәнге аш | C13: Каша кукурузная молочная с маслом сливочным | D13: 180/5 | E13: 274.16
C14: Кофейный напиток с молоком | D14: 180 | E14: 42.67
C15: Бутерброд с маслом сливочным | D15: 30/5 | E15: 111.60
C16: Сыр порционно | D16: 10 | E16: 34.33
B17: 09.00 | C17: Сок | D17: 180 | E17: 94.4
B18: Обед/төшке аш | C18: Салат из отварной свеклы с маслом расстительным | D18: 60 | E18: 53.88
C19: Суп картофельный с клецками на мясном б-не с мясом | D19: 180/10 | E19: 121.66
C20: Гуляш из отварной говядины | D20: 40/40 | E20: 131.20
C21: Пюре картофельное | D21: 140 | E21: 128.10
C22: Компот из свежих фруктов | D22: 180 | E22: 55.26
C23: Хлеб пшеничный | D23: 25 | E23: 58.75
C24: Хлеб ржаной | D24: 45 | E24: 89.10
B25: Полдник/төштән соңгы аш | C25: Кефир | D25: 180 | E25: 90.00
C26: мармелад | D26: 10 | E26: 83.00
B27: Ужин/кичке аш | C27: Расстегай с рыбой | D27: 100 | E27: 420.00
C29: Чай с сахаром и лимоном | D29: 180/6/7 | E29: 26.48
D31: 152,36 руб | E31: =E29+E27+E26+E25+E24+E23+E21+E20+E19+E18+E17+E15+E14+E13 -> 1725.00

Sheet 25 сентября
B2: Согласно контракту
B3: №2024.617
B4: от 23.12.2023 г.
C7: 8 день
B9: Д/сад | C9: МБДОУ "ЦРР-д/с № 22"Алсу"
B11: 10 | C11: Блюдо | D11: С 3 лет | E11: до 7 лет
D12: грамм | E12: ккал
B13: Завтрак/иртәнге аш | C13: Каша манная молочная с маслом сливочным | D13: 180/5 | E13: 199.50
C14: Какао с молоком | D14: 180/6 | E14: 58.83
C15: Бутерброд с маслом сливочным | D15: 30/5 | E15: 111.60
B16: 09.00 | C16: Сок | D16: 180 | E16: 97.4
B17: Обед/төшке аш | C17: Помидоры свежие | D17: 60 | E17: 14.30
C18: Щи со свежей капустой с картофелем на курином б-не, с куриными фрикадельками и со сметаной | D18: 180/11/7 | E18: 104.59
C19: Биточки домашние | D19: 70 | E19: 225.40
C20: Рис отварной рассыпчатый с маслом сливочным | D20: 130/20 | E20: 192.01
C21: Компот из изюма | D21: 180 | E21: 62.10
C22: Хлеб пшеничный | D22: 25 | E22: 58.75
C23: Хлеб ржаной | D23: 45 | E23: 89.10
B24: Полдник/төштән соңгы аш | C24: Молоко кипяченое | D24: 180 | E24: 96.30
C25: Кондитерские изделия (печенье) | D25: 20 | E25: 90.20
B26: Ужин/кичке аш | C26: Омлет натуральный | D26: 150 | E26: 335.23
C27: Чай с сахаром | D27: 180/6 | E27: 24.10
C28: Хлеб пшеничный | D28: 30 | E28: 70.50
D29: 152,36 руб | E29: =E27+E26+E25+E24+E23+E22+E20+E19+E18+E17+E16+E15+E14+E13 -> 1697.31

Sheet 26 сентября
B2: Согласно контракту
B3: №2024.617
B4: от 23.12.2023 г.
C7: 9 день
B9: Д/сад | C9: МБДОУ "ЦРР-д/с № 22"Алсу"
B11: 10 | C11: Блюдо | D11: С 3 лет | E11: до 7 лет
D12: грамм | E12: ккал
B13: Завтрак/иртәнге аш | C13: Каша пшеничная молочная с маслом сливочным | D13: 180/3 | E13: 241.16
C14: Чай с молоком и сахаром | D14: 180/6 | E14: 75.76
C15: Бутерброд с сыром, маслом сливочным | D15: 30/5/5 | E15: 128.77
B16: 09.00 | C16: Яблоко | D16: 100 | E16: 47.0
B17: Обед/төшке аш | C17: Салат из свежей капусты | D17: 60 | E17: 53.88
C18: суп лапша домашняя на курином б-не, с мясом птицы | D18: 180/10 | E18: 114.78
C19: Жаркое из птицы по домашнему | D19: 180 | E19: 303.43
C20: Напиток из сухофруктов | D20: 180 | E20: 87.50
C21: Хлеб пшеничный | D21: 25 | E21: 58.75
C22: Хлеб ржаной | D22: 45 | E22: 89.10
B23: Полдник/төштән соңгы аш | C23: кисломолочный напиток | D23: 180 | E23: 96.30
C24: Кондитерские изделия (печенье) | D24: 20 | E24: 90.20
B25: Ужин/кичке аш | C25: Ватрушка с творогом | D25: 90 | E25: 404.05
C26: чай с сахаром и лимоном | D26: 180/6/7 | E26: 26.48
D28: 152,36 руб | E28: =E26+E25+E24+E23+E22+E21+E20+E19+E18+E17+E16+E15+E14+E13 -> 1817.16

Sheet 27 сентября
B2: Согласно контракту
B3: №2024.617
B4: от 23.12.2023 г.
C6: 10 день
B9: Д/сад | C9: МБДОУ "ЦРР-д/с № 22"Алсу"
B11: 10 | C11: Блюдо | D11: С 3 лет | E11: до 7 лет
D12: грамм | E12: ккал
B13: Завтрак/иртәнге аш | C13: Каша геркулесовая молочная с маслом сливочным | D13: 180/5 | E13: 251.91
C14: Кофейный напиток с молоком | D14: 180/6 | E14: 42.67
C15: Бутерброд с маслом сливочным | D15: 30/5 | E15: 111.60
B16: 09.00 | C16: Сок | D16: 180 | E16: 96.4
B17: Обед/төшке аш | C17: Огурцы свежие порционно | D17: 60 | E17: 15.40
C18: Рассольник ленинградский с куриными фрикадельками, со сметаной | D18: 180/11/7 | E18: 117.51
C19: Котлеты рыбные с маслом сливочным | D19: 70/3 | E19: 144.36
C20: Макаронные изделия отварные с овощами | D20: 130 | E20: 163.28
C21: Кисель | D21: 180 | E21: 75.24
C22: хлеб пшеничный | D22: 25 | E22: 58.75
C23: Хлеб ржаной | D23: 45 | E23: 89.10
B24: Полдник/төштән соңгы аш | C24: Молоко кипяченое | D24: 180 | E24: 96.30
C25: Кондитерские изделия (печенье) | D25: 20 | E25: 90.20
B26: Ужин/кичке аш | C26: Капуста тушеная с мясом | D26: 180 | E26: 250.30
C27: Напиток из шиповника | D27: 180/6 | E27: 79.38
C28: Хлеб пшеничный | D28: 30 | E28: 70.50
D29: 152,36 руб | E29: =E28+E27+E26+E25+E24+E23+E22+E21+E20+E19+E18+E17+E16+E15+E14+E13 -> 1752.90

Sheet 30 сентября
B2: Согласно контракту
B3: №2024.617
B4: от 23.12.2023 г.
C7: 1 день
B9: Д/сад | C9: МБДОУ "ЦРР-д/с № 22"Алсу"
B11: 10 | C11: Блюдо | D11: С 3 лет | E11: до 7 лет
D12: грамм | E12: ккал
B13: Завтрак/иртәнге аш | C13: Каша Дружба молочная с маслом сливочным | D13: 180/5 | E13: 207.60
C14: Кофейный напиток с молоком | D14: 180/6 | E14: 42.67
C15: Бутерброд с маслом сливочным | D15: 30/5 | E15: 111.60
B16: 09.00 | C16: Яблоко | D16: 100 | E16: 47.0
B17: Обед/төшке аш | C17: Помидоры свежие | D17: 60 | E17: 14.30
C18: Суп вермишелевый с картофелем с мясными фрикадельками | D18: 180/15 | E18: 114.56
C19: Котлеты рубленные из говядины | D19: 70 | E19: 211.06
C20: Каша Ячневая вязкая с маслом сливочным | D20: 130/3 | E20: 145.86
C21: Напиток из сухофруктов | D21: 180 | E21: 68.18
C22: Хлеб ржаной | D22: 45 | E22: 89.10
C23: Хлеб пшеничный | D23: 25 | E23: 58.75
B24: Полдник/төштән соңгы аш | C24: Кефир | D24: 180 | E24: 90.00
C25: Вафли | D25: 20 | E25: 192.00
B26: Ужин/кичке аш | C26: Котлеты рыбные | D26: 70 | E26: 124.56
C27: Пюре картофельное | D27: 140 | E27: 128.10
C28: Чай с сахаром | D28: 180/6 | E28: 24.10
C29: Хлеб пшеничный | D29: 30 | E29: 70.50
D30: 152,36 руб | E30: =E29+E28+E27+E26+E25+E24+E23+E22+E21+E20+E19+E18+E17+E16+E15+E14+E13 -> 1739.94

Sheet 1 апреля (hidden)
B2: Согласно контракту
B3: №2024.617
B4: от 23.12.2023 г.
C6: 10 день
B9: Д/сад | C9: МБДОУ "ЦРР-д/с № 22"Алсу" | D9: День | E9: 2024-04-01
B11: 10 | C11: Блюдо | D11: С 3 лет | E11: до 7 лет
D12: грамм | E12: ккал
B13: Завтрак/иртәнге аш | C13: Каша геркулесовая молочная с маслом сливочным | D13: 180/5 | E13: 251.91
C14: Кофейный напиток с молоком | D14: 180/6 | E14: 42.67
C15: Бутерброд с маслом сливочным | D15: 30/5 | E15: 111.60
B16: 09.00 | C16: апельсин | D16: 100 | E16: 47.0
B17: Обед/төшке аш | C17: Салат из свеклы с сыром | D17: 60 | E17: 78.42
C18: Рассольник ленинградский с куриными фрикадельками, со сметаной | D18: 180/11/7 | E18: 117.51
C19: Котлеты рыбные с маслом сливочным | D19: 70/3 | E19: 144.36
C20: Макаронные изделия отварные с овощами | D20: 130 | E20: 163.28
C21: Кисель | D21: 180 | E21: 75.24
C22: хлеб пшеничный | D22: 25 | E22: 58.75
C23: Хлеб ржаной | D23: 45 | E23: 89.10
B24: Полдник/төштән соңгы аш | C24: Молоко кипяченое | D24: 180 | E24: 96.30
C25: Кондитерские изделия (печенье) | D25: 20 | E25: 90.20
B26: Ужин/кичке аш | C26: Капуста тушеная с мясом | D26: 180 | E26: 250.30
C27: Напиток из шиповника | D27: 180/6 | E27: 79.38
C28: Хлеб пшеничный | D28: 30 | E28: 70.50
D29: 152,36 руб | E29: =E28+E27+E26+E25+E24+E23+E22+E21+E20+E19+E18+E17+E16+E15+E14+E13 -> 1766.52

Sheet 2 апреля (hidden)
B2: Согласно контракту
B3: №2024.617
B4: от 23.12.2023 г.
C6: 2 день
B9: Д/сад | C9: МБДОУ "ЦРР-д/с № 22"Алсу" | D9: День | E9: 2024-03-02
B11: 10 | C11: Блюдо | D11: С 3 лет | E11: до 7 лет
D12: грамм | E12: ккал
B13: Завтрак/иртәнге аш | C13: Каша полбяная молочная с маслом сливочным | D13: 180/3 | E13: 202.64
C14: какао с молоком | D14: 180 | E14: 58.83
C15: Бутерброд с сыром, маслом сливочным | D15: 30/5/5 | E15: 128.77
B16: 09.00 | C16: Сок | D16: 180 | E16: 94.4
B17: Обед/төшке аш | C17: Салат из картофеля с солеными огурцами | D17: 60 | E17: 66.84
C18: Борщ со свежей капустой, картофелем на курином б-не, с куриными фрикадельками, со сметаной | D18: 180/10/7 | E18: 106.63
C19: Фрикадельки куриные в молочном соусе | D19: 50/25 | E19: 136.30
C20: Макароны отварны с маслом сливочным | D20: 130/3 | E20: 155.22
C21: Компот из свежих яблок | D21: 180 | E21: 55.26
C22: Хлеб пшеничный | D22: 25 | E22: 58.75
C23: Хлеб ржаной | D23: 45 | E23: 89.10
B24: Полдник/төштән соңгы аш | C24: Ряженка | D24: 180 | E24: 91.80
C25: Булочка дорожная | D25: 50 | E25: 165.50
B26: Ужин/кичке аш | C26: Запеканка творожная с повидлом | D26: 120/30 | E26: 418.50
C27: Чай с сахаром и лимоном | D27: 180/6/7 | E27: 26.48
D28: 152,36 руб | E28: =E27+E26+E25+E24+E23+E22+E21+E20+E18+E19+E17+E16+E15+E14 -> 1652.38
